bitfinex/quotes_SOLUSD_20260311
["timestamp","ask_amount","ask_price","bid_price","bid_amount"]
[1773240271229,11.50099483,86.949,86.912,14.89477571]
[1773240271617,11.50099483,86.949,86.912,43.65950325]
[1773240272027,11.50099483,86.949,86.913,3.3888847]
[1773240272724,3.17541847,86.948,86.914,11.50562625]
[1773240273220,3.17541847,86.948,86.92,7.41011877]
[1773240273623,7.41011877,86.97,86.931,3.3888847]
[1773240273828,3.17541847,86.975,86.941,3.3888847]
[1773240274024,3.17541847,86.973,86.941,3.3888847]
[1773240274815,11.49795336,86.972,86.942,11.50192082]
[1773240275017,3.17541847,86.973,86.942,40.25672287]
[1773240275212,3.17541847,86.971,86.942,11.50192082]
[1773240275530,3.17541847,86.969,86.94,7.41011877]
[1773240276522,3.17541847,86.967,86.933,40.26089056]
[1773240276719,3.17541847,86.959,86.933,11.50311159]
[1773240277304,1.43717807,86.976,86.941,3.3888847]
[1773240277305,4.61259654,86.976,86.941,3.3888847]
[1773240277525,3.17541847,86.976,86.941,3.3888847]
[1773240277914,3.17541847,86.974,86.941,3.3888847]
[1773240278425,3.17541847,86.974,86.94,7.41011877]
[1773240278608,3.17541847,86.972,86.941,11.50205311]
[1773240279224,3.17541847,86.949,86.914,3.3888847]
[1773240279428,3.17541847,86.949,86.915,11.50549387]
[1773240280628,3.17541847,86.949,86.904,2.54]
[1773240280629,3.29332602,86.929,86.904,2.54]
[1773240280823,3.29332602,86.919,86.904,2.54]
[1773240281023,3.29332602,86.919,86.896,2.54]
[1773240282032,3.29332602,86.939,86.9,7.41099989]
[1773240282433,3.29332602,86.929,86.9,7.41099989]
[1773240282922,3.29332602,86.929,86.901,11.50734744]
[1773240283436,3.29332602,86.929,86.901,42.81571604]
[1773240284237,3.29332602,86.946,86.911,3.28225116]
[1773240284414,3.29332602,86.946,86.92,7.41099989]
[1773240284737,3.29332602,86.959,86.93,10.69325105]
[1773240284918,3.29332602,86.959,86.931,14.04337624]
[1773240285111,3.29332602,86.957,86.931,14.04337624]
[1773240286937,3.29332602,86.949,86.931,2.54]
[1773240287316,3.29332602,86.958,86.932,11.50324391]
[1773240288723,3.29332602,86.97,86.941,3.28225116]
[1773240288914,22.20263563,86.97,86.942,11.50192082]
[1773240289239,7.41099989,86.96,86.933,2.54]
[1773240289534,3.29332602,86.959,86.933,14.04305623]
[1773240291016,3.29332602,86.959,86.933,42.8008352]
[1773240292322,3.20761646,86.969,86.94,7.41099989]
[1773240292524,3.20761646,86.968,86.94,7.41099989]
[1773240292929,3.20761646,86.968,86.941,11.50205311]
[1773240293123,3.20761646,86.968,86.941,40.2571859]
[1773240293740,3.20761646,86.976,86.942,3.31026741]
[1773240295141,3.20761646,86.975,86.943,11.50178852]
[1773240295643,3.20761646,86.969,86.943,11.50178852]
[1773240296126,3.20761646,86.969,86.944,2.54]
[1773240296817,3.20761646,86.967,86.944,2.54]
[1773240297548,3.20761646,86.967,86.945,11.50152395]
[1773240297717,3.20761646,86.967,86.944,2.54]
[1773240297918,3.20761646,86.967,86.944,14.04159963]
[1773240299138,3.20761646,86.965,86.936,11.50265443]
[1773240299324,3.20761646,86.959,86.937,2.54]
[1773240300035,3.20761646,86.965,86.937,2.54]
[1773240300238,3.20761646,86.965,86.938,3.31026741]
[1773240300449,3.20761646,86.973,86.941,3.31026741]
[1773240301323,3.20761646,86.973,86.951,11.50073029]
[1773240302649,3.20761646,86.969,86.949,2.54]
[1773240302823,3.20761646,86.969,86.95,2.54]
[1773240303024,3.20761646,86.969,86.924,11.5043026]
[1773240303025,3.20761646,86.959,86.913,11.50575863]
[1773240303245,3.20761646,86.937,86.908,11.50642058]
[1773240303743,3.20761646,86.929,86.907,2.54]
[1773240303931,3.20761646,86.929,86.908,11.50642058]
[1773240305141,3.20761646,86.919,86.907,2.54]
[1773240305435,3.20761646,86.927,86.907,2.54]
[1773240305625,7.41099989,86.93,86.909,3.31026741]
[1773240305826,7.41099989,86.93,86.908,11.50642058]
[1773240306026,3.20761646,86.934,86.908,14.81668799]
[1773240306631,3.20761646,86.934,86.907,2.54]
[1773240306632,3.20761646,86.929,86.893,3.31026741]
[1773240306839,3.20761646,86.929,86.901,3.31026741]
[1773240307225,3.20761646,86.919,86.882,3.31026741]
[1773240307450,3.20761646,86.919,86.894,2.54]
[1773240307739,3.20761646,86.91,86.894,2.54]
[1773240307946,3.20761646,86.918,86.894,2.54]
[1773240308843,7.41099989,86.92,86.895,3.31026741]
[1773240309226,3.20761646,86.927,86.896,40.2780335]
[1773240309738,3.20761646,86.927,86.9,10.7212673]
[1773240309944,3.20761646,86.927,86.902,3.31026741]
[1773240310246,3.20761646,86.927,86.903,2.54]
[1773240310447,3.20761646,86.936,86.904,2.54]
[1773240310627,3.20761646,86.936,86.906,3.31026741]
[1773240311326,3.20761646,86.936,86.908,3.31026741]
[1773240312247,11.50284695,86.935,86.907,11.50655298]
[1773240312437,7.41099989,86.93,86.907,11.50655298]
[1773240312748,3.20761646,86.929,86.905,2.54]
[1773240313050,3.20761646,86.919,86.902,2.54]
[1773240313344,3.20761646,86.939,86.904,3.31026741]
[1773240313547,3.20761646,86.938,86.904,3.31026741]
[1773240313943,3.20761646,86.929,86.903,11.5070826]
[1773240314541,3.20761646,86.948,86.911,3.31026741]
[1773240315639,3.20761646,86.948,86.921,3.31026741]
[1773240316354,7.41099989,86.96,86.92,7.41099989]
[1773240316558,3.20761646,86.957,86.922,3.31026741]
[1773240316732,10.61861635,86.95,86.922,3.31026741]
[1773240316932,10.61861635,86.95,86.921,2.54]
[1773240316933,3.20761646,86.949,86.921,2.54]
[1773240317334,3.20761646,86.949,86.922,3.31026741]
[1773240317532,3.20761646,86.949,86.921,2.54]
[1773240317747,11.4949135,86.995,86.941,3.31026741]
[1773240318046,7.41099989,86.99,86.951,3.31026741]
[1773240318255,7.41099989,86.97,86.939,2.54]
[1773240318549,7.41099989,86.97,86.939,5.85026741]
[1773240318745,7.41099989,86.97,86.94,3.31026741]
[1773240319135,7.41099989,86.98,86.942,3.31026741]
[1773240319639,7.41099989,86.98,86.923,0.57256933]
[1773240319640,3.33033029,86.988,86.952,11.50059803]
[1773240319840,3.33033029,86.979,86.952,11.50059803]
[1773240320238,3.33033029,86.988,86.953,3.38824157]
[1773240320844,11.49570635,86.989,86.953,3.38824157]
[1773240320845,7.41099989,86.98,86.953,3.38824157]
[1773240321255,3.33033029,86.983,86.953,3.38824157]
[1773240322058,3.33033029,86.981,86.954,11.5003335]
[1773240322243,0.1,87.01,86.971,3.38824157]
[1773240322550,0.1,87.01,86.991,3.38824157]
[1773240322733,0.1,87.01,86.973,3.38824157]
[1773240322934,0.1,87.01,86.981,3.38824157]
[1773240323766,3.33033029,87.008,86.972,2.54]
[1773240323938,3.33033029,86.999,86.973,2.54]
[1773240324255,3.33033029,87.009,86.975,3.38824157]
[1773240324453,0.1,87.01,86.981,3.38824157]
[1773240324836,0.1,87.01,86.991,3.38824157]
[1773240325257,3.33033029,87.039,87.001,3.38824157]
[1773240325450,3.33033029,87.039,87.003,3.38824157]
[1773240326157,3.33033029,87.038,87.004,11.49372442]
[1773240326740,3.33033029,87.038,87.004,14.88196599]
[1773240327045,3.33033029,87.038,87.005,2.54]
[1773240327553,3.33033029,87.038,87.005,5.92824157]
[1773240327749,3.33033029,87.029,87.005,2.54]
[1773240328053,3.33033029,87.038,87.005,2.54]
[1773240328450,7.41099989,87.03,87.006,11.49346022]
[1773240328749,11.48936659,87.037,87.006,11.49346022]
[1773240328957,11.48936659,87.037,87.005,2.54]
[1773240328958,3.33033029,87.029,87.005,2.54]
[1773240329159,3.33033029,87.029,87.006,11.49346022]
[1773240329348,3.33033029,87.038,87.007,3.38824157]
[1773240329550,7.41099989,87.04,87.007,3.38824157]
[1773240329551,3.33033029,87.037,87.007,3.38824157]
[1773240329736,3.33033029,87.036,87.007,3.38824157]
[1773240329937,7.41099989,87.03,87.006,11.49346022]
[1773240330137,0.86581098,87.046,87.006,11.49346022]
[1773240330138,3.33033029,87.038,87.007,3.38824157]
[1773240330349,3.33033029,87.036,87.007,3.38824157]
[1773240330545,7.41099989,87.03,87.007,3.38824157]
[1773240330753,7.41099989,87.03,87.008,11.49319602]
[1773240331060,3.33033029,87.045,87.011,3.38824157]
[1773240331267,3.33033029,87.056,87.021,3.38824157]
[1773240331555,3.43033029,87.06,87.031,3.38824157]
[1773240331762,3.43033029,87.06,87.008,86.19897019]
[1773240331763,7.41099989,87.05,87.021,3.38824157]
[1773240332056,3.33033029,87.029,86.999,11.49438499]
[1773240332264,3.33033029,87.039,87.0,3.38824157]
[1773240332555,7.41099989,87.03,87.001,3.38824157]
[1773240332754,7.41099989,87.03,87.003,3.38824157]
[1773240332938,0.86581098,87.058,87.004,3.38824157]
[1773240333135,7.51099989,87.06,87.021,3.38824157]
[1773240333355,3.33033029,87.058,87.023,3.38824157]
[1773240333557,3.33033029,87.049,87.013,3.38824157]
[1773240333857,3.33033029,87.049,87.014,5.92824157]
[1773240334058,3.33033029,87.049,87.015,3.38824157]
[1773240334565,3.33033029,87.039,87.004,3.38824157]
[1773240334737,2.9578172,87.02,86.985,3.38824157]
[1773240334942,2.9578172,87.01,86.986,2.54]
[1773240335542,2.9578172,87.02,86.987,3.38824157]
[1773240335962,3.33033029,87.029,86.987,3.38824157]
[1773240336449,2.9578172,87.02,86.987,3.38824157]
[1773240336648,2.9578172,87.0,86.969,3.38824157]
[1773240336958,6.28814749,87.03,86.991,3.38824157]
[1773240337546,10.72806502,87.03,86.991,3.38824157]
[1773240337741,11.49015867,87.031,86.973,19.27227044]
[1773240337742,3.33033029,87.009,86.973,19.27227044]
[1773240337943,3.33033029,86.999,86.977,2.54]
[1773240338362,3.33033029,86.999,86.974,11.49768896]
[1773240338543,3.33033029,86.999,86.974,14.03768896]
[1773240338742,11.49174318,87.019,86.981,3.38824157]
[1773240339247,3.33033029,87.018,86.981,3.38824157]
[1773240339452,3.33033029,87.018,86.982,3.38824157]
[1773240339760,3.33033029,87.028,86.982,3.38824157]
[1773240340062,3.33033029,87.028,86.981,1.14967636]
[1773240340063,3.33033029,87.028,86.984,3.25994871]
[1773240340267,7.39922079,87.03,86.991,3.25994871]
[1773240340468,7.39922079,87.03,86.992,3.25994871]
[1773240340653,3.23617333,87.038,86.992,3.25994871]
[1773240340850,7.39922079,87.03,86.994,3.25994871]
[1773240342161,3.23617333,87.029,86.994,3.25994871]
[1773240342367,3.23617333,87.019,86.989,11.49567273]
[1773240342569,7.39922079,87.01,86.989,11.49567273]
[1773240343065,3.23617333,86.999,86.975,2.54]
[1773240343245,7.39922079,86.99,86.969,11.4982471]
[1773240343444,7.39922079,86.99,86.975,2.54]
[1773240343954,7.39922079,87.0,86.976,3.25994871]
[1773240344155,7.39922079,87.0,86.978,3.25994871]
[1773240344354,3.23617333,87.008,86.978,3.25994871]
[1773240344555,7.39922079,87.01,86.974,11.49768896]
[1773240344556,11.49212611,87.017,86.981,3.25994871]
[1773240344757,11.49174318,87.019,86.981,3.25994871]
[1773240345363,11.49174318,87.019,86.983,3.25994871]
[1773240346062,7.39922079,87.02,86.983,3.25994871]
[1773240346270,11.49111237,87.024,86.991,3.25994871]
[1773240346472,11.49048978,87.029,86.991,3.25994871]
[1773240346666,3.23617333,87.039,86.991,3.25994871]
[1773240346972,3.23617333,87.039,86.993,3.25994871]
[1773240347353,7.39922079,87.03,86.993,3.25994871]
[1773240347565,7.39922079,87.03,86.995,3.25994871]
[1773240348170,3.23617333,87.029,86.995,3.25994871]
[1773240348473,7.39922079,87.03,86.995,3.25994871]
[1773240349656,11.49042273,87.029,86.997,3.25994871]
[1773240349850,3.47247838,87.028,86.992,2.54]
[1773240350056,7.39922079,87.01,86.992,2.54]
[1773240350262,7.39922079,87.02,86.994,3.32153833]
[1773240351275,3.47247838,87.028,86.994,3.32153833]
[1773240351650,11.49068679,87.027,86.995,14.81645183]
[1773240351855,14.96316517,87.027,86.995,14.81645183]
[1773240352378,3.47247838,87.019,86.992,2.54]
[1773240352573,3.47247838,87.019,86.993,2.54]
[1773240353775,7.39922079,87.02,86.994,11.49504563]
[1773240354076,11.49075276,87.027,86.995,3.32153833]
[1773240354257,7.39922079,87.02,86.995,3.32153833]
[1773240354453,14.96323114,87.027,86.995,3.32153833]
[1773240354869,7.39922079,87.02,86.995,3.32153833]
[1773240355066,3.47247838,87.019,86.993,2.54]
[1773240355265,3.47247838,87.019,86.994,11.49504563]
[1773240355854,7.39922079,87.03,86.995,3.32153833]
[1773240356060,11.48921199,87.039,87.001,3.32153833]
[1773240356269,170.79383402,87.073,86.994,41.38216427]
[1773240356270,3.50523039,87.085,86.994,225.30289443]
[1773240356499,45.91764708,87.113,87.03,7.39922079]
[1773240356500,3.50523039,87.075,87.03,7.39922079]
[1773240356670,3.50523039,87.075,87.031,2.54]
[1773240357058,3.50523039,87.098,87.06,7.39922079]
[1773240357476,3.50523039,87.098,87.061,2.54]
[1773240357673,3.50523039,87.079,87.053,2.54]
[1773240357870,7.49922079,87.1,87.051,3.32153833]
[1773240358071,7.49922079,87.1,87.061,3.32153833]
[1773240358368,0.1,87.1,87.07,7.39922079]
[1773240358976,0.1,87.1,87.071,3.32153833]
[1773240359276,0.1,87.1,87.061,3.32153833]
[1773240359480,1e-08,87.112,87.081,3.32153833]
[1773240359679,7.39922079,87.11,87.082,40.19200293]
[1773240359979,3.47247838,87.109,87.082,11.48342941]
[1773240360162,1e-08,87.112,87.083,3.32153833]
[1773240360759,1e-08,87.112,87.1,7.39922079]
[1773240361261,1e-08,87.112,87.082,11.48342941]
[1773240361465,1e-08,87.112,87.083,3.32153833]
[1773240361665,1e-08,87.112,87.091,11.48224271]
[1773240361980,1e-08,87.112,87.091,14.80378104]
[1773240362371,1e-08,87.112,87.092,3.32153833]
[1773240362578,1e-08,87.112,87.101,3.32153833]
[1773240362764,167.1,87.167,87.102,3.32153833]
[1773240362965,11.47169041,87.172,87.131,3.32153833]
[1773240363281,305.9,87.225,87.091,189.45700471]
[1773240363282,7.39922079,87.17,87.094,3.69383402]
[1773240363478,11.47064942,87.18,87.13,7.39922079]
[1773240363776,7.39922079,87.18,87.141,11.47565439]
[1773240363975,1.48363417,87.187,87.141,40.16479038]
[1773240364179,1.48363417,87.209,87.141,40.16479038]
[1773240364479,7.39922079,87.18,87.141,40.16479038]
[1773240364679,7.39922079,87.18,87.133,2.54]
[1773240364680,7.39922079,87.17,87.133,2.54]
[1773240364860,7.39922079,87.15,87.112,11.47941709]
[1773240365061,7.39922079,87.13,87.105,3.32153833]
[1773240365261,7.39922079,87.14,87.105,3.32153833]
[1773240365478,3.69383402,87.173,87.093,2.54]
[1773240365479,3.47247838,87.119,87.093,2.54]
[1773240365781,3.47247838,87.099,87.066,2.54]
[1773240365972,7.39922079,87.09,87.056,2.54]
[1773240366277,7.39922079,87.08,87.056,2.54]
[1773240366486,10.87169917,87.08,87.056,2.54]
[1773240366684,3.47247838,87.079,87.04,2.54]
[1773240366858,3.47247838,87.069,87.04,2.54]
[1773240367481,7.39922079,87.06,87.026,11.49073237]
[1773240367684,235.31302368,87.118,87.025,1.13773071]
[1773240367685,11.48923458,87.038,87.025,1.13773071]
[1773240367859,11.48923458,87.038,86.989,11.49570635]
[1773240368184,7.39922079,87.02,86.989,11.49570635]
[1773240368370,40.21232104,87.038,86.983,2.54]
[1773240368371,7.39922079,87.01,86.983,2.54]
[1773240368579,7.39922079,87.03,86.985,3.5052695]
[1773240368879,7.39922079,87.03,86.983,2.54]
[1773240368880,7.39922079,87.01,86.983,2.54]
[1773240369380,7.39922079,86.99,86.983,2.54]
[1773240369684,7.39922079,86.99,86.962,11.49924963]
[1773240369977,7.39922079,86.99,86.968,11.49843863]
[1773240370180,7.39922079,87.0,86.972,11.49795336]
[1773240370360,11.49346022,87.006,86.95,7.39922079]
[1773240370361,7.39922079,86.99,86.95,7.39922079]
[1773240370563,7.39922079,86.98,86.939,3.5052695]
[1773240370788,0.02952661,86.978,86.939,3.5052695]
[1773240371075,7.39922079,86.98,86.941,3.5052695]
[1773240371277,0.02952661,86.99,86.941,3.5052695]
[1773240371477,7.39922079,86.97,86.941,3.5052695]
[1773240371862,11.49702801,86.979,86.941,3.5052695]
[1773240372062,11.49702801,86.979,86.943,3.5052695]
[1773240372364,7.39922079,86.97,86.936,3.5052695]
[1773240372690,7.39922079,86.95,86.913,3.5052695]
[1773240373284,7.39922079,86.93,86.91,0.2]
[1773240374574,11.50244715,86.939,86.91,0.2]
[1773240374984,40.25824144,86.939,86.901,3.52260408]
[1773240375383,11.50244715,86.939,86.901,3.52260408]
[1773240375685,11.50244715,86.939,86.91,7.39922079]
[1773240375885,11.50244715,86.939,86.902,3.52260408]
[1773240376068,7.39922079,86.93,86.901,2.54]
[1773240376269,11.50244715,86.939,86.903,3.52260408]
[1773240376468,7.39922079,86.93,86.901,2.54]
[1773240376669,7.39922079,86.92,86.901,2.54]
[1773240377088,7.39922079,86.91,86.89,0.2]
[1773240377778,7.39922079,86.9,86.89,1e-08]
[1773240378374,11.50761228,86.899,86.89,1e-08]
[1773240378573,7.39922079,86.9,86.89,1e-08]
[1773240378781,11.50684099,86.905,86.89,1e-08]
[1773240379373,7.39922079,86.9,86.89,1e-08]
[1773240379690,7.39922079,86.9,86.872,2.54]
[1773240379894,7.39922079,86.89,86.872,2.54]
[1773240380190,7.39922079,86.89,86.864,3.53870587]
[1773240380366,7.39922079,86.87,86.85,0.2]
[1773240380570,7.39922079,86.86,86.85,0.16173236]
[1773240380972,7.39922079,86.86,86.82,3.55783969]
[1773240381170,7.39922079,86.85,86.82,3.55783969]
[1773240381388,3.69383402,86.893,86.817,11.5184814]
[1773240381389,11.50999643,86.881,86.831,3.55783969]
[1773240381587,7.39922079,86.87,86.831,3.55783969]
[1773240381789,40.2849875,86.881,86.831,3.55783969]
[1773240381790,7.39922079,86.86,86.831,3.55783969]
[1773240381975,7.39922079,86.87,86.831,3.55783969]
[1773240382290,40.2849875,86.881,86.831,3.55783969]
[1773240382593,7.39922079,86.85,86.825,11.51729549]
[1773240382772,7.39922079,86.86,86.826,3.55783969]
[1773240383381,11.51160489,86.869,86.826,3.55783969]
[1773240383584,7.39922079,86.87,86.831,3.55783969]
[1773240384382,18.91067916,86.87,86.832,3.55783969]
[1773240384584,7.39922079,86.86,86.832,3.55783969]
[1773240384782,7.39922079,86.84,86.819,3.55783969]
[1773240385283,40.29009311,86.87,86.821,3.55783969]
[1773240385284,7.39922079,86.86,86.821,3.55783969]
[1773240385490,7.39922079,86.86,86.821,3.40702774]
[1773240385816,7.39922079,86.88,86.84,7.39922079]
[1773240386101,11.50893668,86.889,86.85,7.39922079]
[1773240386306,7.39922079,86.88,86.841,2.54]
[1773240386803,11.50893668,86.889,86.85,7.39922079]
[1773240387289,7.39922079,86.88,86.842,40.30307915]
[1773240387494,7.39922079,86.88,86.843,3.48243372]
[1773240387688,7.39922079,86.88,86.851,3.48243372]
[1773240387885,0.20092693,86.888,86.843,2.54]
[1773240388085,40.27664299,86.899,86.843,2.54]
[1773240388086,7.39922079,86.88,86.844,3.48243372]
[1773240388391,7.39922079,86.88,86.831,1.15166242]
[1773240388392,7.39922079,86.85,86.822,3.48243372]
[1773240388778,7.39922079,86.87,86.831,3.48243372]
[1773240388978,3.69383402,86.882,86.831,3.48243372]
[1773240388979,7.39922079,86.86,86.831,3.48243372]
[1773240389196,7.39922079,86.87,86.831,3.48243372]
[1773240389693,7.39922079,86.87,86.841,3.48243372]
[1773240390095,7.39922079,86.88,86.841,3.48243372]
[1773240390294,11.50946653,86.885,86.841,3.48243372]
[1773240390295,7.39922079,86.87,86.841,3.48243372]
[1773240390682,11.50946653,86.885,86.853,3.48243372]
[1773240391016,7.39922079,86.88,86.847,2.54]
[1773240391304,7.39922079,86.88,86.812,92.15279804]
[1773240391305,7.39922079,86.88,86.841,3.48243372]
[1773240391883,7.39922079,86.88,86.85,7.39922079]
[1773240392106,11.50946653,86.885,86.851,3.48243372]
[1773240392493,7.39922079,86.89,86.851,3.48243372]
[1773240392692,7.39922079,86.89,86.862,3.48243372]
[1773240393307,7.39922079,86.89,86.862,14.99494782]
[1773240393508,7.39922079,86.89,86.851,3.48243372]
[1773240393890,7.39922079,86.89,86.861,3.48243372]
[1773240395723,7.39922079,86.89,86.852,3.69138396]
[1773240395724,11.50893668,86.889,86.863,3.48243372]
[1773240395885,7.39922079,86.9,86.863,3.48243372]
[1773240396087,7.39922079,86.89,86.863,3.48243372]
[1773240396688,7.39922079,86.87,86.843,3.48243372]
[1773240396886,0.26005642,86.886,86.843,14.9974551]
[1773240396887,7.39922079,86.86,86.843,14.9974551]
[1773240397095,7.39922079,86.86,86.843,3.48243372]
[1773240397695,11.51160714,86.869,86.844,11.51490028]
[1773240398388,7.39922079,86.86,86.843,3.48243372]
[1773240399612,7.39922079,86.86,86.843,14.99742164]
[1773240399810,7.39922079,86.87,86.844,3.48243372]
[1773240400009,7.39922079,86.88,86.846,3.4984066]
[1773240400311,7.39922079,86.87,86.846,3.4984066]
[1773240401014,7.39922079,86.87,86.843,14.05498792]
[1773240401015,7.39922079,86.86,86.843,2.31624985]
[1773240401211,7.39922079,86.85,86.823,3.4984066]
[1773240401408,7.39922079,86.86,86.824,3.4984066]
[1773240401610,7.39922079,86.86,86.823,11.51756902]
[1773240401611,7.42733045,86.86,86.826,3.4984066]
[1773240402397,11.51079136,86.875,86.831,3.4984066]
[1773240402603,7.42733045,86.86,86.833,3.4984066]
[1773240403207,7.42733045,86.87,86.833,3.4984066]
[1773240403615,7.42733045,86.86,86.833,3.4984066]
[1773240403912,11.51291173,86.859,86.834,11.51622636]
[1773240404110,11.51291173,86.859,86.834,15.01463296]
[1773240404293,11.51291173,86.859,86.835,3.4984066]
[1773240404613,7.42733045,86.86,86.835,3.4984066]
[1773240404793,11.51291173,86.859,86.835,3.4984066]
[1773240405119,18.94019551,86.86,86.835,3.4984066]
[1773240405601,11.51227362,86.864,86.835,3.4984066]
[1773240405910,11.51026139,86.879,86.843,3.4984066]
[1773240406996,7.42733045,86.89,86.851,3.4984066]
[1773240407196,7.42733045,86.88,86.851,3.4984066]
[1773240408015,11.51026139,86.879,86.852,11.51383963]
[1773240408512,0.33554135,86.911,86.859,3.4984066]
[1773240408698,7.42733045,86.88,86.848,3.4984066]
[1773240409103,7.42733045,86.87,86.848,3.4984066]
[1773240409310,7.42733045,86.88,86.85,7.42733045]
[1773240409513,7.42733045,86.87,86.846,2.54]
[1773240410107,11.51050863,86.878,86.848,3.5944886]
[1773240410713,7.42733045,86.87,86.848,3.5944886]
[1773240411309,11.51050863,86.878,86.848,3.5944886]
[1773240411707,11.51050863,86.878,86.8,0.2]
[1773240411708,0.35657727,86.859,86.8,0.2]
[1773240411910,7.42733045,86.82,86.8,0.2]
[1773240412108,7.42733045,86.82,86.801,11.5206046]
[1773240412417,7.42733045,86.82,86.802,3.5944886]
[1773240413200,18.94548455,86.82,86.8,3.7944886]
[1773240413622,7.42733045,86.82,86.8,3.7944886]
[1773240413820,18.94546649,86.82,86.8,3.7944886]
[1773240414711,18.94546649,86.82,86.8,0.2]
[1773240414712,7.42733045,86.81,86.8,0.2]
[1773240414906,7.42733045,86.81,86.783,11.52298236]
[1773240415220,7.42733045,86.8,86.773,3.5944886]
[1773240415427,7.42733045,86.78,86.763,3.5944886]
[1773240415721,7.42733045,86.79,86.763,3.5944886]
[1773240415901,7.42733045,86.8,86.763,3.5944886]
[1773240416102,7.42733045,86.79,86.763,3.5944886]
[1773240416303,7.42733045,86.77,86.753,2.54]
[1773240416603,7.42733045,86.77,86.729,1.15301686]
[1773240416604,7.42733045,86.76,86.734,3.5944886]
[1773240416923,7.42733045,86.75,86.734,3.5944886]
[1773240417125,0.18154138,86.749,86.7,0.2]
[1773240417308,3.69383402,86.766,86.711,3.67320441]
[1773240417621,7.42733045,86.74,86.711,11.53256218]
[1773240417818,7.42733045,86.74,86.712,3.67320441]
[1773240418123,3.69383402,86.786,86.712,3.67320441]
[1773240418325,18.95605721,86.74,86.713,11.53229619]
[1773240418530,40.35049295,86.74,86.714,3.67320441]
[1773240418730,18.95605721,86.74,86.714,3.67320441]
[1773240419026,18.95605721,86.74,86.703,6.21320441]
[1773240419027,7.42733045,86.73,86.703,6.21320441]
[1773240419230,7.42733045,86.73,86.7,0.2]
[1773240419231,7.42733045,86.72,86.7,0.2]
[1773240419526,7.42733045,86.72,86.7,3.87320441]
[1773240419726,18.95605721,86.74,86.701,3.67320441]
[1773240419905,7.42733045,86.73,86.701,3.67320441]
[1773240420105,7.42733045,86.72,86.701,3.67320441]
[1773240420326,7.42733045,86.72,86.7,0.2]
[1773240420327,7.42733045,86.74,86.703,3.67320441]
[1773240420525,7.42733045,86.74,86.711,3.67320441]
[1773240420729,7.42733045,86.75,86.711,3.67320441]
[1773240420937,7.42733045,86.75,86.721,3.67320441]
[1773240421630,7.42733045,86.76,86.721,3.67320441]
[1773240421831,40.34070607,86.761,86.721,3.67320441]
[1773240421832,11.52591602,86.761,86.721,3.67320441]
[1773240422026,7.42733045,86.75,86.721,3.67320441]
[1773240422423,7.42733045,86.75,86.723,3.67320441]
[1773240422821,11.52727939,86.751,86.723,3.67320441]
[1773240423031,7.42733045,86.75,86.723,3.67320441]
[1773240423216,28.81479005,86.761,86.723,3.67320441]
[1773240423217,11.5265993,86.756,86.723,3.67320441]
[1773240423416,11.5265993,86.756,86.721,11.53116914]
[1773240423417,7.42733045,86.77,86.741,3.67320441]
[1773240423612,7.42733045,86.76,86.732,3.67320441]
[1773240423811,7.42733045,86.77,86.732,3.67320441]
[1773240424022,7.42733045,86.77,86.741,3.67320441]
[1773240424224,0.03332174,86.795,86.741,3.67320441]
[1773240424225,7.42733045,86.78,86.741,3.67320441]
[1773240424425,11.52485334,86.769,86.743,3.67320441]
[1773240424611,7.42733045,86.77,86.743,3.67320441]
[1773240424932,7.42733045,86.78,86.743,3.67320441]
[1773240425619,0.04245501,86.749,86.704,3.67320441]
[1773240425824,7.42733045,86.72,86.704,3.67320441]
[1773240426713,7.42733045,86.72,86.684,0.57867509]
[1773240426714,7.42733045,86.71,86.692,3.67320441]
[1773240426913,7.42733045,86.71,86.621,46.17794281]
[1773240426914,7.42733045,86.71,86.674,3.67320441]
[1773240427136,7.42733045,86.69,86.674,3.67320441]
[1773240427435,7.42733045,86.7,86.674,3.67320441]
[1773240428737,7.42733045,86.68,86.65,7.42733045]
[1773240428937,7.42733045,86.7,86.661,3.70108704]
[1773240429231,2.54,86.728,86.661,3.70108704]
[1773240429232,7.42733045,86.68,86.661,3.70108704]
[1773240429537,7.42733045,86.67,86.648,3.70108704]
[1773240429712,7.42733045,86.66,86.62,7.42733045]
[1773240429912,7.42733045,86.67,86.643,11.80443536]
[1773240430515,2.54,86.714,86.643,11.80443536]
[1773240430516,18.96410802,86.68,86.643,11.80443536]
[1773240430820,28.83733628,86.694,86.643,11.80443536]
[1773240430821,7.42733045,86.67,86.643,0.2628239]
[1773240431813,40.37234839,86.693,86.644,4.17488705]
[1773240431814,7.42733045,86.68,86.644,4.17488705]
[1773240432019,7.42733045,86.67,86.644,3.5944886]
[1773240432219,7.42733045,86.65,86.643,1e-08]
[1773240432531,7.42733045,86.66,86.643,1e-08]
[1773240432733,3.60366041,86.669,86.643,1e-08]
[1773240432916,7.42733045,86.67,86.643,1e-08]
[1773240433634,3.98160352,86.709,86.643,1e-08]